[Event "Czech Extraliga 2023-24"]
[Site "Czech Republic"]
[Date "2024.02.11"]
[Round "8.3"]
[White "Mihok, Oliver"]
[Black "Sulypa, Oleksandr"]
[Result "1/2-1/2"]
[ECO "C47"]
[WhiteElo "2535"]
[BlackElo "2458"]
[Annotator "TA"]
[PlyCount "72"]
[EventDate "2023.10.14"]
[EventCountry "CZE"]
[SourceTitle "playchess.com"]
[Source "ChessBase"]
[SourceQuality "1"]
[TimeControl "40/5400+30:1800+30"]

{[%evp 9,72,-12,0,9,1,0,14,6,7,0,24,27,16,12,16,6,0,12,27,27,12,14,23,0,0,0,0,0,0,0,21,26,21,23,14,11,6,21,14,10,12,17,37,20,43,38,64,66,77,66,102,81,80,66,77,73,73,50,54,54,50,0,76,-107,-100]} 1. e4 {[%emt 0:00:03]} e5 {[%emt 0:00:03]} 2. Nf3 {[%emt 0:00:07]} Nc6 {[%emt 0:00:05]} 3. Nc3 {[%emt 0:00:17]} Nf6 {[%emt 0:00:56]} 4. h3 {[%emt 0:00:08]} Bb4 {[%emt 0:18:00]} 5. Nd5 {[%emt 0:00:09]} Be7 {[%emt 0:13:05]} 6. d3 {[%emt 0:06:38]} O-O {[%emt 0:00:50]} 7. c3 {[%emt 0:02:02]} d6 {[%emt 0:01:17][%cal Bd7d6,Bd6d5,Bd5e4][%mdl 32]} 8. Nxe7+ {[%emt 0:02:51] The position is equal.} Qxe7 {[%emt 0:01:51]} 9. Be2 {[%emt 0:02:36]} a5 {[%emt 0:01:54]} 10. O-O {[%emt 0:04:03]} d5 {[%emt 0:08:42]} 11. Qc2 {[%emt 0:04:31]} h6 {[%emt 0:00:26]} 12. Re1 {[%emt 0:05:13]} Be6 {[%emt 0:04:16]} 13. Bf1 {[%emt 0:04:17]} Rfe8 {[%emt 0:05:51]} 14. b3 {[%emt 0:06:14]} Nd7 {[%emt 0:04:05]} 15. d4 {[%emt 0:06:49]} dxe4 {[%emt 0:01:10]} 16. Nxe5 {[%emt 0:01:43]} (16. Rxe4 Bf5 17. Bd3 Bxe4 18. Bxe4 exd4 19. Bxc6 bxc6 $17) 16... Ncxe5 {[%emt 0:04:26]} 17. dxe5 {[%emt 0:00:07]} Bd5 {[%emt 0:01:00]} 18. Bb5 $1 {[%emt 0:06:30]} c6 {[%emt 0:01:06]} 19. Bf1 {[%emt 0:01:13]} Qxe5 {[%emt 0:03:31]} 20. Bb2 $1 {[%emt 0:01:47] [#] aiming for c4.} Qf5 {[%emt 0:10:06]} 21. c4 {[%emt 0:00:20][%cal Oc2c3] And now Qc3! would win.} Be6 {[%emt 0:00:02]} 22. Qxe4 {[%emt 0:04:54]} Qxe4 {[%emt 0:00:06]} 23. Rxe4 {[%emt 0:00:05]} a4 {[%emt 0:02:56]} 24. Rd1 $36 {[%emt 0:03:59][%cal Oe4e6][%mdl 2048] White wants to play Rxe6! White has some pressure.} axb3 {[%emt 0:02:09]} 25. axb3 {[%emt 0:00:07][%cal Oe4e6] next Rxe6! is good for White.} Ra2 {[%emt 0:03:43]} 26. Bd4 {[%emt 0:01:54]} Rea8 {[%emt 0:05:23]} 27. Re3 {[%emt 0:01:53]} g6 {[%emt 0:02:42]} 28. g4 {[%emt 0:02:24]} Nf8 {[%emt 0:01:39]} 29. Bf6 {[%emt 0:01:55] Inhibits Rd8.} R2a3 {[%emt 0:00:05] Black is weak on the dark squares} 30. Red3 {[%emt 0:01:06] Hoping for Rd8.} Rc8 {[%emt 0:01:13]} 31. Bg2 {[%emt 0:04:13]} Raa8 {[%emt 0:00:05]} 32. f4 {[%emt 0:00:43]} Re8 {[%emt 0:00:21]} 33. Kh2 {[%emt 0:05:17]} Nh7 {[%emt 0:00:07]} 34. Bc3 {[%emt 0:00:47] A strong pair of Bishops.} f5 {[%emt 0:00:13]} 35. Rd6 {[%emt 0:07:15]} ({White should try} 35. Kg3 $14) 35... Kf7 {[%emt 0:00:22]} (35... Nf8 $11) 36. Bb4 $2 {[%emt 0:05:26] [#] White has more active pieces.} (36. h4 $16 {stays on course.}) 36... fxg4 {[%emt 0:01:38] Weighted Error Value: White=0.15 (very precise) /Black=0.11 (very precise) .  Mistake:       	White=2     	Black=1      Inaccurate:     	---       	Black=2      OK:         	White=13    	Black=11     Best:        	---       	Black=2      Strong:       	White=2     	---} 1/2-1/2

[Event "Czech Extraliga 2023-24"]
[Site "Czech Republic"]
[Date "2024.02.11"]
[Round "8.3"]
[White "UNI4 Bernasek Jan GM"]
[Black "NOV5 Nguyen Thai Dai Van GM"]
[Result "1/2-1/2"]
[ECO "E54"]
[WhiteElo "2515"]
[BlackElo "2618"]
[Annotator "TA"]
[PlyCount "111"]
[EventDate "2023.10.14"]
[EventCountry "CZE"]
[SourceTitle "playchess.com"]
[Source "ChessBase"]
[SourceQuality "1"]
[TimeControl "40/5400+30:1800+30"]

{[%evp 42,111,49,38,39,25,23,31,20,17,12,0,21,22,39,23,10,0,0,0,0,0,0,0,0,0,9,22,15,0,0,0,0,0,112,128,115,99,135,134,138,137,129,125,169,117,162,33,32,35,27,31,39,8,8,0,0,0,0,0,0,0,0,0,0,0,0,0,0,0,0,-6214]} 1. d4 {[%emt 0:00:03]} Nf6 {[%emt 0:00:15]} 2. c4 {[%emt 0:00:07]} e6 {[%emt 0:00:05]} 3. Nc3 {[%emt 0:00:07]} Bb4 {[%emt 0:00:06]} 4. e3 {[%emt 0:00:51]} O-O {[%emt 0:00:09]} 5. Bd3 {[%emt 0:00:28]} d5 {[%emt 0:00:10]} 6. Nf3 {[%emt 0:00:21]} dxc4 {[%emt 0:05:44]} 7. Bxc4 {[%emt 0:00:18]} c5 {[%emt 0:00:07]} 8. O-O {[%emt 0:04:07]} Bd7 {[%emt 0:01:38]} 9. a3 {[%emt 0:09:48]} Ba5 {[%emt 0:00:16]} 10. Qe2 {[%emt 0:05:29]} Bc6 {[%emt 0:10:18]} 11. Rd1 {[%emt 0:04:23]} Qe7 {[%emt 0:26:15]} 12. Bd2 {[%emt 0:05:10] E54: Nimzo-Indian: Rubinstein: Main Line: 7...dxc4 8 Bxc4.} cxd4 {[%emt 0:09:01]} 13. exd4 {[%emt 0:03:51]} Bxc3 $146 {[%emt 0:03:38]} ({Predecessor:} 13... Qc7 14. Ne5 Nbd7 15. b4 Bb6 16. Bf4 Bd5 17. Bxd5 exd5 18. Rac1 Qd8 19. Qf3 h6 20. Nxd7 Qxd7 {1-0 Knaak,R-Liebert,H DDR-ch23 Final 1974 (10)}) 14. bxc3 {[%emt 0:11:17]} Ne4 {[%emt 0:02:31]} 15. Be1 {[%emt 0:03:54]} Nd7 {[%emt 0:04:42]} 16. Bd3 {[%emt 0:01:47]} Ng5 {[%emt 0:02:27]} 17. Nd2 {[%emt 0:07:11]} h6 {[%emt 0:00:13]} 18. f4 {[%emt 0:04:56]} Nh7 {[%emt 0:00:09]} 19. f5 {[%emt 0:01:01]} e5 {[%emt 0:03:45]} 20. Bg3 {[%emt 0:01:42]} Rfe8 {[%emt 0:00:43]} 21. Re1 {[%emt 0:01:56]} Qg5 {[%emt 0:03:56]} 22. Qf2 {[%emt 0:02:51]} (22. dxe5 Nxe5 23. Be4 (23. Bxe5 $2 Rxe5 24. Qf2 Qf6 $19) 23... Nf6 24. Bxc6 Nxc6 $17) 22... Qd8 {[%emt 0:05:41]} 23. Nc4 {[%emt 0:02:27]} ({Reject} 23. dxe5 Nxe5 24. Bf1 Nf6 $11) 23... exd4 {[%emt 0:08:58]} 24. Rxe8+ {[%emt 0:02:44]} Qxe8 {[%emt 0:00:01]} 25. Re1 {[%emt 0:00:32]} Qd8 {[%emt 0:00:37]} 26. Nd6 {[%emt 0:01:33]} Nb6 {[%emt 0:05:06]} 27. Qxd4 {[%emt 0:02:45]} Nf6 {[%emt 0:06:11]} 28. c4 {[%emt 0:13:35]} Nc8 {[%emt 0:00:01]} 29. c5 {[%emt 0:00:11]} Nxd6 {[%emt 0:00:04]} 30. Bxd6 {[%emt 0:00:46]} ({Of course not} 30. Qxd6 Qa5 31. Bc4 Re8 $17 (31... Qxa3 32. Bxf7+ Kh8 33. Qd4 $11)) 30... Qa5 {[%emt 0:00:20]} 31. Qb4 {[%emt 0:02:54]} Qxb4 {[%emt 0:00:02]} 32. axb4 {[%emt 0:00:05]} a6 {[%emt 0:00:07]} 33. Bc4 {[%emt 0:01:38]} Bd5 {[%emt 0:01:23]} 34. Bxd5 {[%emt 0:01:27]} Nxd5 {[%emt 0:00:03]} 35. Re5 {[%emt 0:00:31]} Nxb4 {[%emt 0:00:53]} 36. Re7 {[%emt 0:00:06]} a5 {[%emt 0:01:46]} 37. Rxb7 {[%emt 0:00:04]} Nc6 {[%emt 0:00:29]} (37... f6 $11 {keeps the balance.}) 38. Rb6 $1 $16 {[%emt 0:03:30]} Rc8 {[%emt 0:00:01]} 39. Kf2 $1 {[%emt 0:00:31]} Nd4 {[%emt 0:00:47]} 40. g4 {[%emt 0:01:21]} a4 {[%emt 0:01:10]} 41. Ke3 {[%emt 0:12:07]} Nb3 {[%emt 0:06:54]} 42. Rb5 {[%emt 0:01:10]} Kh7 {[%emt 0:11:22] [#]} 43. Kd3 {[%emt 0:04:44]} (43. Ke4 $1 $18) 43... f6 {[%emt 0:03:03] [#]} 44. Kc3 {[%emt 0:05:06]} ({White should try} 44. Kc4 $1 $18) 44... h5 $1 $14 {[%emt 0:02:01]} 45. h3 {[%emt 0:02:40]} hxg4 {[%emt 0:00:02]} 46. hxg4 {[%emt 0:00:06]} Kh6 {[%emt 0:02:21]} 47. Bf4+ {[%emt 0:01:17]} (47. Kc4 $5) 47... Kh7 $1 {[%emt 0:00:01]} 48. Kc4 {[%emt 0:02:46]} Rxc5+ {[%emt 0:01:50]} 49. Rxc5 {[%emt 0:00:09]} Nxc5 {[%emt 0:00:04]} 50. Kxc5 {[%emt 0:00:09]} a3 {[%emt 0:00:02]} 51. Bd2 {[%emt 0:01:17]} (51. Bc1 $5 a2 $8 52. Bb2 $11) 51... a2 {[%emt 0:00:06]} 52. Bc3 {[%emt 0:00:03]} Kh6 $1 {[%emt 0:00:06]} 53. Bd2+ {[%emt 0:00:55]} (53. Kd5 $5 Kg5 $8 54. Ke6 $11) 53... Kh7 {[%emt 0:00:06]} 54. Bc3 {[%emt 0:00:03]} Kh6 $1 {[%emt 0:00:05]} 55. Bd2+ Kh7 {[%emt 0:10:09]} 56. Kc4 $2 {[%emt 0:07:40][%mdl 8192]} (56. Bc3 $11 Kh6) 1/2-1/2

[Event "Czech Extraliga 2023-24"]
[Site "Czech Republic"]
[Date "2024.02.11"]
[Round "8.4"]
[White "NOV6 Grandelius Nils GM"]
[Black "UNI5 Jurcik Marian GM"]
[Result "1/2-1/2"]
[ECO "C84"]
[WhiteElo "2689"]
[BlackElo "2398"]
[Annotator "TA"]
[PlyCount "83"]
[EventDate "2023.10.14"]
[EventCountry "CZE"]
[SourceTitle "playchess.com"]
[Source "ChessBase"]
[SourceQuality "1"]
[TimeControl "40/5400+30:1800+30"]

{[%evp 13,83,44,52,45,46,47,51,54,48,43,49,49,42,22,16,0,0,7,0,0,0,7,0,0,0,0,31,27,32,27,27,17,20,0,0,0,24,22,18,18,18,18,19,17,17,18,24,0,8,5,8,6,6,6,15,0,0,0,19,0,0,0,0,0,17,0,0,0,0,6,12,7]} 1. e4 {[%emt 1:31:00]} e5 {[%emt 1:31:00]} 2. Nf3 {[%emt 0:00:30]} Nc6 {[%emt 0:00:30]} 3. Bb5 {[%emt 0:00:30]} a6 {[%emt 0:00:30]} 4. Ba4 {[%emt 0:00:30]} Nf6 {[%emt 0:00:30]} 5. O-O {[%emt 0:00:30]} Nxe4 {[%emt 0:00:30]} 6. d4 {[%emt 0:00:30]} Be7 {[%emt 0:00:30]} 7. Re1 {[%emt 0:00:30][%cal Bf1e1,Be1e4,Be4e5][%mdl 32]} b5 {[%emt 0:00:30]} 8. Rxe4 {[%emt 0:00:30] [#] Threatens to win with Bb3.} ({Much worse is} 8. Nxe5 Nxe5 9. dxe5 Bb7 $11 (9... Nxf2 10. Qf3 $11)) (8. dxe5 Nxf2 9. Qe2 Bc5 $17) 8... d5 {[%emt 0:00:30]} 9. Nxe5 {[%emt 0:00:30]} Nxe5 {[%emt 0:00:30]} 10. Rxe5 {White is slightly better.} bxa4 {[%emt 0:00:30]} 11. Qe2 {[%emt 0:01:00]} Be6 {[%emt 0:00:30]} 12. f4 $1 {[%emt 0:00:30] Black must now prevent f5.} Kf8 {[%emt 0:00:00]} 13. Nc3 {[%emt 0:00:30][%cal Of4f5] aiming for f5!} (13. f5 $5 Bd7 14. Nc3 $14 (14. Rxd5 c6 $11)) 13... Bf6 {[%emt 0:01:00]} 14. f5 {[%emt 0:00:30]} Bxe5 {[%emt 0:00:30]} 15. Qxe5 {[%emt 0:00:30]} Bd7 {[%emt 0:00:30]} 16. f6 {[%emt 0:00:30]} (16. Qxd5 c6 17. Qd6+ Kg8) 16... Qxf6 {[%emt 0:00:30]} 17. Qxf6 {[%emt 0:00:30]} gxf6 {[%emt 0:00:30]} 18. Bh6+ {[%emt 0:00:30]} Ke7 {[%emt 0:00:30]} 19. Nxd5+ {[%emt 0:00:30]} Kd6 {[%emt 0:00:30]} 20. Nxf6 {[%emt 0:00:30]} Be6 {[%emt 0:00:30]} 21. Re1 {[%emt 0:00:30][%mdl 1024] White has compensation.} c6 {[%emt 0:00:30] [#]} 22. c4 $1 {[%emt 0:00:30][%cal Od4d5]} Rhd8 {[%emt 0:00:30]} 23. Ne4+ {[%emt 0:00:30]} Kc7 {[%emt 0:00:30]} 24. Bf4+ {[%emt 0:00:30]} Kc8 {[%emt 0:00:30]} (24... Kb6 $5) 25. Nd6+ {[%emt 0:00:30]} Rxd6 {[%emt 0:00:30]} 26. Bxd6 $11 {[%mdl 4096] Endgame. KRB-KRB} Kd7 {[%emt 0:00:30]} 27. c5 {[%emt 0:01:00]} Ra7 {[%emt 0:00:30]} 28. a3 {[%emt 0:00:30]} Rb7 29. Re2 Rb3 {[%emt 0:01:00]} 30. h3 {[%emt 0:01:00]} Rd3 {[%emt 0:00:30] The position is equal.} 31. Be5 {[%emt 0:00:30]} Bd5 {[%emt 0:00:30]} 32. Kh2 {[%emt 0:00:30]} h5 {[%emt 0:00:30]} 33. Bf6 {[%emt 0:00:30]} Rb3 {[%emt 0:00:30]} 34. Bh4 {[%emt 0:00:30]} Rd3 {[%emt 0:00:30]} 35. Bf6 {[%emt 0:00:30]} Rb3 {[%emt 0:00:30]} 36. Bh4 {[%emt 0:00:30]} Rd3 {[%emt 0:00:30]} 37. Bf2 {[%emt 0:00:30]} f5 {[%emt 0:00:30]} 38. Be3 {[%emt 0:00:30]} Bc4 {[%emt 0:00:30]} 39. Re1 {[%emt 0:00:30]} Rb3 {[%emt 0:00:30]} 40. Bc1 {[%emt 0:00:30]} Rd3 {[%emt 0:00:30]} 41. Bg5 {[%emt 0:30:30]} Be6 {[%emt 0:30:30]} 42. Re2 {[%emt 0:00:30] Weighted Error Value: White=0.05 (flawless) /Black=0.04 (flawless) .  Inaccurate:     	---       	Black=1      OK:         	White=10    	Black=18     Best:        	White=4     	Black=3      Strong:       	White=1     	---} 1/2-1/2

[Event "Czech Extraliga 2023-24"]
[Site "Czech Republic"]
[Date "2024.02.11"]
[Round "8.4"]
[White "Vrolijk, Liam"]
[Black "Shagbazyan, Taron"]
[Result "1/2-1/2"]
[ECO "D45"]
[WhiteElo "2573"]
[BlackElo "2403"]
[Annotator "TA"]
[PlyCount "68"]
[EventDate "2023.10.14"]
[EventCountry "CZE"]
[SourceTitle "playchess.com"]
[Source "ChessBase"]
[SourceQuality "1"]
[TimeControl "40/5400+30:1800+30"]

{[%evp 23,68,5,31,5,15,20,26,14,36,19,17,16,25,6,27,19,26,0,0,0,0,0,0,0,0,0,2,0,58,70,63,34,96,101,107,0,0,0,0,0,8,0,0,0,7,0,0]} 1. Nf3 {[%emt 0:00:05]} Nf6 {[%emt 0:00:14]} 2. c4 {[%emt 0:00:14]} e6 {[%emt 0:00:03]} 3. Nc3 {[%emt 0:00:37]} d5 {[%emt 0:00:16]} 4. e3 {[%emt 0:00:20]} Bd6 {[%emt 0:00:29]} 5. b3 {[%emt 0:01:34]} O-O {[%emt 0:00:55]} 6. Bb2 {[%emt 0:00:14]} c6 {[%emt 0:00:41]} 7. d4 {[%emt 0:04:49]} Nbd7 {[%emt 0:01:57][%cal Bb8d7,Bd7f8,Bf8g6][%mdl 32]} 8. Be2 {[%emt 0:02:31]} dxc4 {[%emt 0:06:16]} 9. bxc4 {[%emt 0:04:08]} e5 {[%emt 0:00:36]} 10. O-O {[%emt 0:06:11]} exd4 {[%emt 0:01:14]} 11. exd4 {[%emt 0:00:38]} Re8 {[%emt 0:00:37]} 12. Qc2 {[%emt 0:10:20]} Nf8 $1 {[%emt 0:02:37]} 13. h3 {[%emt 0:05:38]} Ng6 {[%emt 0:22:11][%cal Oc8h3] [#] ...Bxh3! would now be deadly.} 14. Rfe1 {[%emt 0:01:07]} Bd7 {[%emt 0:23:57]} 15. Rad1 {[%emt 0:07:52] White has an edge.} Qc7 {[%emt 0:08:42]} 16. Bc1 {[%emt 0:03:24]} Bf4 {[%emt 0:03:41]} 17. Bd3 {[%emt 0:02:54]} Bxc1 {[%emt 0:01:01]} 18. Qxc1 {[%emt 0:02:36]} Rxe1+ {[%emt 0:02:58]} 19. Rxe1 {[%emt 0:00:08]} Re8 {[%emt 0:00:16]} 20. Bxg6 {[%emt 0:03:21]} hxg6 {[%emt 0:01:24]} 21. Rxe8+ {[%emt 0:05:46]} Bxe8 {[%emt 0:05:36]} 22. Qe3 {[%emt 0:03:26]} Kf8 {[%emt 0:03:47]} 23. Ne5 {[%emt 0:02:34]} b5 {[%emt 0:02:06]} 24. d5 {[%emt 0:03:51]} cxd5 {[%emt 0:01:45]} 25. Nxb5 {[%emt 0:03:49]} Bxb5 {[%emt 0:01:52]} (25... Qa5 $11) 26. cxb5 $11 {[%emt 0:00:17][%mdl 4096] Endgame. Black must now prevent Nc6. KQN-KQN} Qc2 {[%emt 0:03:24]} 27. Kh2 {[%emt 0:09:18]} ({Weaker is} 27. Qxa7 Qc1+ 28. Kh2 Qf4+ 29. g3 Qxe5 $17) 27... Qc7 {[%emt 0:04:08]} (27... Qa4 $1 $14) 28. g3 $16 {[%emt 0:03:44]} Qd6 {[%emt 0:00:24]} 29. Qc3 {[%emt 0:05:27] White has more active pieces.} (29. Nc6 $16 a6 30. a4 axb5 31. axb5) 29... d4 $1 $11 {[%emt 0:00:40] The position is equal.} 30. Qc8+ {[%emt 0:00:07]} Ne8 {[%emt 0:00:24]} 31. Nd3 {[%emt 0:03:31]} Qa3 {[%emt 0:00:12]} 32. Ne5 {[%emt 0:02:13]} Qd6 {[%emt 0:00:22] Repels Qd8} 33. Nd3 {[%emt 0:00:30]} Qa3 {[%emt 0:00:10]} 34. Ne5 {[%emt 0:01:46]} Qd6 {[%emt 0:00:21] Dodges Qd8.   Weighted Error Value: White=0.12 (very precise) /Black=0.09 (flawless) .  Mistake:       	White=1     	Black=2      Inaccurate:     	White=2     	---        OK:         	White=9     	Black=9      Best:        	---       	Black=2      Strong:       	---       	Black=1} 1/2-1/2

[Event "Czech Extraliga 2023-24"]
[Site "Czech Republic"]
[Date "2024.02.11"]
[Round "8.4"]
[White "Janik, Igor"]
[Black "Stalmach, Richard"]
[Result "1/2-1/2"]
[ECO "A10"]
[WhiteElo "2505"]
[BlackElo "2433"]
[Annotator "TA"]
[PlyCount "76"]
[EventDate "2023.10.14"]
[EventCountry "CZE"]
[SourceTitle "playchess.com"]
[Source "ChessBase"]
[SourceQuality "1"]
[TimeControl "40/5400+30:1800+30"]

{[%evp 19,76,39,35,34,38,43,40,43,31,40,23,7,36,34,32,28,20,19,18,30,31,22,48,43,54,60,34,36,36,37,36,39,35,35,40,11,7,0,0,0,0,0,0,0,0,0,0,0,0,0,0,0,0,0,0,0,0,0,0]} 1. c4 {[%emt 0:00:02]} e6 {[%emt 0:00:45]} 2. g3 {[%emt 0:00:11]} f5 {[%emt 0:01:34]} 3. Bg2 {[%emt 0:00:28]} Nf6 {[%emt 0:00:07]} 4. Nf3 {[%emt 0:02:12]} d5 {[%emt 0:01:08]} 5. O-O {[%emt 0:01:09]} Be7 {[%emt 0:00:20]} 6. b3 {[%emt 0:03:06]} O-O {[%emt 0:03:52]} 7. Bb2 {[%emt 0:00:47]} c6 {[%emt 0:00:43]} 8. d3 {[%emt 0:00:44]} Nbd7 {[%emt 0:01:03]} 9. Nbd2 {[%emt 0:01:07]} a5 {[%emt 0:02:39]} 10. a3 {[%emt 0:00:49]} Bd6 {[%emt 0:12:35] [#]} 11. e4 $1 {[%emt 0:05:51]} fxe4 {[%emt 0:01:03]} (11... dxe4 12. dxe4) 12. dxe4 {[%emt 0:05:39]} dxe4 {[%emt 0:05:33]} 13. Ng5 {[%emt 0:04:35][%csl LRe4,LRe6] White is slightly better.} e3 {[%emt 0:01:15]} 14. fxe3 {[%emt 0:00:48]} (14. Nxe6 $2 {is the wrong capture.} Qe7 15. Nd4 (15. Nxf8 $2 e2 $19) 15... Ne5 $19 (15... exd2 $2 16. Qxd2 Nb6 17. Rfe1 $17)) 14... Qe7 {[%emt 0:06:41]} 15. Qc2 {[%emt 0:07:30]} Be5 {[%emt 0:02:40]} 16. Bxe5 {[%emt 0:03:58]} Nxe5 {[%emt 0:00:17]} 17. Qc3 {[%emt 0:00:06]} Ned7 {[%emt 0:04:39]} 18. Nge4 {[%emt 0:02:33]} e5 {[%emt 0:01:52]} 19. c5 {[%emt 0:03:14]} Nd5 {[%emt 0:04:06]} 20. Qc4 {[%emt 0:01:50] Threatens to win with Nd6.} N7f6 {[%emt 0:12:42]} 21. Nxf6+ {[%emt 0:04:20]} gxf6 {[%emt 0:00:24]} 22. Bxd5+ {[%emt 0:09:23]} ({Reject} 22. e4 b5 23. cxb6 Ba6 24. Qxc6 Ne3 $11) 22... cxd5 {[%emt 0:00:14]} 23. Qxd5+ {[%emt 0:00:01]} Be6 {[%emt 0:00:08]} 24. Qd6 {[%emt 0:00:02]} Qxd6 {[%emt 0:00:05]} 25. cxd6 {[%emt 0:00:03]} Rad8 {[%emt 0:11:54]} 26. Ne4 {[%emt 0:01:08]} Bxb3 {[%emt 0:00:26]} 27. Nxf6+ {[%emt 0:06:19]} Kg7 {[%emt 0:00:04] The position is equal.} 28. Rab1 {[%emt 0:00:28]} a4 {[%emt 0:01:50]} 29. Ne4 {[%emt 0:02:41]} Rxf1+ {[%emt 0:00:17]} 30. Kxf1 $11 {[%emt 0:01:40][%mdl 4096] Endgame. KRB-KRN} b5 $1 {[%emt 0:04:23]} 31. Rc1 {[%emt 0:06:00]} Bd5 {[%emt 0:03:32]} 32. Rc7+ {[%emt 0:02:38]} Kg6 {[%emt 0:00:16]} 33. Nc3 {[%emt 0:00:48][%csl LRb5,LRd5]} Bc4+ {[%emt 0:00:42]} (33... Rxd6 34. Nxb5 Rc6 35. Rxc6+ Bxc6 36. Nc3 $16) 34. Ke1 {[%emt 0:00:41]} Rxd6 {[%emt 0:00:22]} 35. Nxa4 {[%emt 0:00:24]} Rd3 {[%emt 0:00:24]} 36. Nb6 {[%emt 0:03:30]} Be6 {[%emt 0:04:35]} 37. Rc5 {[%emt 0:01:08][%csl LRb5,LRe5]} Kf5 {[%emt 0:01:20]} 38. Ke2 {[%emt 0:01:03]} Rxa3 {[%emt 0:00:33] Weighted Error Value: White=0.03 (flawless) /Black=0.04 (flawless) .  Inaccurate:     	White=1     	Black=2      OK:         	White=14    	Black=13     Best:        	White=1     	Black=4      Strong:       	---       	Black=1} 1/2-1/2

[Event "Czech Extraliga 2023-24"]
[Site "Czech Republic"]
[Date "2024.02.11"]
[Round "8.4"]
[White "Ponizil, Cyril"]
[Black "Cvek, Robert"]
[Result "1/2-1/2"]
[ECO "C06"]
[WhiteElo "2467"]
[BlackElo "2450"]
[Annotator "TA"]
[PlyCount "88"]
[EventDate "2023.10.14"]
[EventCountry "CZE"]
[SourceTitle "playchess.com"]
[Source "ChessBase"]
[SourceQuality "1"]
[TimeControl "40/5400+30:1800+30"]

{[%evp 18,88,49,34,51,36,57,32,36,36,39,35,36,41,45,50,34,40,50,40,44,54,37,48,62,75,73,66,162,32,40,37,37,19,43,15,30,0,0,0,0,-4,-20,-17,-17,-38,0,-93,-84,-73,-82,-91,-85,-87,-102,-110,-71,-97,-100,-128,-110,-99,-115,-127,-96,-88,-75,-94,-95,-70,-66,-60,0]} 1. e4 {[%emt 0:00:02]} e6 {[%emt 0:00:25]} 2. d4 {[%emt 0:00:05]} d5 {[%emt 0:00:10]} 3. Nd2 {[%emt 0:00:03]} Nf6 {[%emt 0:00:49]} 4. e5 {[%emt 0:00:04]} Nfd7 {[%emt 0:00:07]} 5. c3 {[%emt 0:01:06]} c5 {[%emt 0:00:22]} 6. Bd3 {[%emt 0:00:14]} b6 {[%emt 0:00:42]} 7. Ne2 {[%emt 0:06:38]} Ba6 {[%emt 0:01:30]} 8. Bxa6 {[%emt 0:00:04]} Nxa6 {[%emt 0:00:08]} 9. O-O {[%emt 0:00:01]} Nc7 {[%emt 0:01:13]} 10. Nf4 {[%emt 0:00:39]} c4 {[%emt 0:00:28]} 11. Qg4 {[%emt 0:04:01]} b5 {[%emt 0:00:40]} 12. Nf3 {[%emt 0:02:02]} a5 {[%emt 0:04:25] White is slightly better.} 13. Bd2 {[%emt 0:07:57]} g6 {[%emt 0:04:13]} 14. h4 {[%emt 0:00:33][%cal Bh2h4,Bh4h5][%mdl 32]} Be7 {[%emt 0:00:29]} 15. Qg3 {[%emt 0:08:40]} h6 {[%emt 0:11:40]} 16. h5 {[%emt 0:03:55]} (16. Nxg6 Rg8 17. Qh3 (17. h5 Nb6 $17) 17... Rxg6 $17) 16... g5 {[%emt 0:00:20]} 17. Ne2 {[%emt 0:00:02]} Ra6 {[%emt 0:14:44]} 18. Nh2 {[%emt 0:02:44]} f5 {[%emt 0:01:12]} 19. exf6 {[%emt 0:00:03]} Nxf6 {[%emt 0:00:14][%cal Oe8d7]} 20. Ng4 {[%emt 0:05:24]} Nxh5 {[%emt 0:07:07]} 21. Qh3 {[%emt 0:01:07]} Nf6 {[%emt 0:00:33] [#]} 22. Ne5 {[%emt 0:01:55] White is more active.} (22. Nxh6 $2 Ng8 23. Nxg8 (23. Nf7 $2 Rxh3 24. Nxd8 Rd3 $19) 23... Rxh3 24. gxh3 Bd6 $19) 22... g4 {[%emt 0:01:16] [#]} (22... Rh7 $1 $14) 23. Nxg4 {[%emt 0:02:54]} ({White should play} 23. Qh2 $1 $18) 23... Nxg4 $14 {[%emt 0:00:08]} 24. Qxg4 {[%emt 0:00:09]} Kd7 {[%emt 0:00:57]} 25. Qh3 {[%emt 0:04:42][%cal Oa1e1]} Qg8 {[%emt 0:02:25]} 26. Bf4 {[%emt 0:02:05][%cal Of4e5]} (26. Bxh6 $2 Qg6 27. f4 Rxh6 $19 (27... Qxh6 $2 28. Qxh6 Rxh6 29. g4 $19)) 26... h5 {[%emt 0:08:13][%cal Bh6h5,Bh5g4][%mdl 32]} 27. Rae1 {[%emt 0:17:39]} Qg4 {[%emt 0:07:52]} 28. Qxg4 {[%emt 0:00:03]} hxg4 {[%emt 0:00:06]} 29. Be5 $132 {[%emt 0:00:02][%mdl 2048] White is not holding back} Rh7 {[%emt 0:04:37]} 30. Nf4 {[%emt 0:00:43]} b4 {[%emt 0:11:43]} 31. f3 {[%emt 0:01:54]} Nb5 {[%emt 0:00:52]} 32. Re3 {[%emt 0:02:08]} (32. fxg4 $11 bxc3 33. Re2) 32... gxf3 {[%emt 0:01:12]} 33. Rexf3 {[%emt 0:00:36]} a4 {[%emt 0:05:15] White must now prevent ...a3.} 34. cxb4 {[%emt 0:00:04]} Bxb4 {[%emt 0:00:37]} 35. g4 {[%emt 0:06:25]} Bd6 {[%emt 0:00:26]} 36. Bxd6 {[%emt 0:10:59]} Rxd6 {[%emt 0:01:18]} ({Reject} 36... Kxd6 $6 37. Nxe6 a3 (37... Kxe6 $2 {perishes.} 38. Rf6+ Ke7 39. Rxa6 $18) (37... Rh4 38. g5 $14) 38. b3 $11) 37. Ng6 {[%emt 0:00:03]} Kc7 {[%emt 0:01:18]} 38. Rd1 {[%emt 0:02:01]} Rg7 {[%emt 0:02:42]} 39. Ne5 {[%emt 0:00:55]} Rb6 {[%emt 0:00:57]} 40. Rd2 {[%emt 0:01:59]} Kd6 {[%emt 0:02:52][%cal Oa4a3] aiming for ...a3!} 41. a3 {[%emt 0:34:42]} Rb8 {[%emt 0:10:50][%cal Ob5d4] Dodges Rf8. And now ...Nxd4! would win.} ({But not} 41... Nxd4 $6 42. Nxc4+ dxc4 43. Rxd4+ Kc5 44. Rff4 $11) 42. Rf4 {[%emt 0:00:00]} Rc8 {[%emt 0:02:09]} 43. Nf7+ {[%emt 0:00:00]} Ke7 {[%emt 0:00:17]} 44. Ne5 {[%emt 0:00:00]} Kd6 {[%emt 0:00:14] Weighted Error Value: White=0.15 (very precise) /Black=0.07 (flawless) .  Mistake:       	White=2     	Black=2      Inaccurate:     	White=2     	Black=1      OK:         	White=12    	Black=15     Best:        	White=1     	Black=2} (44... c3 $15 45. Rc2 Kd6) 1/2-1/2